[Event "Titled Tuesday Blitz June 6 Early 2023"]
[White "Reprintsev, Alexander"]
[Black "Maluco_do_Natal_00"]
[WhiteFideId "14100541"]
[WhiteElo "2229"]
[BlackElo "2073"]
[Result "1-0"]
[Round "1"]
[TimeControl "180+2"]
[Date "2023.06.06"]
[WhiteClock "0:01:14"]
[BlackClock "0:00:08"]
[Board "202"]

1. e4 {[%clk 0:02:57]}  c5 {[%clk 0:02:59]} 2. Nf3 {[%clk 0:02:55]}  Nc6 {[%clk 0:02:59]} 3. Bb5 {[%clk 0:02:48]}  e6 {[%clk 0:02:59]} 4. Bxc6 {[%clk 0:02:43]}  bxc6 {[%clk 0:02:57]} 5. e5 {[%clk 0:02:43]}  f6 {[%clk 0:02:51]} 6. exf6 {[%clk 0:02:39]}  Nxf6 {[%clk 0:02:50]} 7. d4 {[%clk 0:02:38]}  Ba6 {[%clk 0:02:34]} 8. b3 {[%clk 0:02:33]}  Be7 {[%clk 0:01:50]} 9. c4 {[%clk 0:02:31]}  O-O {[%clk 0:01:42]} 10. O-O {[%clk 0:02:31]}  cxd4 {[%clk 0:01:30]} 11. Nxd4 {[%clk 0:02:22]}  c5 {[%clk 0:01:25]} 12. Nb5 {[%clk 0:02:13]}  Qb6 {[%clk 0:01:24]} 13. N1c3 {[%clk 0:02:07]}  d5 {[%clk 0:01:12]} 14. Re1 {[%clk 0:02:03]}  d4 {[%clk 0:01:11]} 15. Ne4 {[%clk 0:02:03]}  Nxe4 {[%clk 0:01:00]} 16. Rxe4 {[%clk 0:02:02]}  Bxb5 {[%clk 0:01:00]} 17. cxb5 {[%clk 0:02:01]}  Rae8 {[%clk 0:00:42]} 18. Qe2 {[%clk 0:02:00]}  Bd6 {[%clk 0:00:40]} 19. a4 {[%clk 0:01:51]}  e5 {[%clk 0:00:39]} 20. Bd2 {[%clk 0:01:49]}  Rf5 {[%clk 0:00:32]} 21. f3 {[%clk 0:01:48]}  c4 {[%clk 0:00:28]} 22. Qxc4+ {[%clk 0:01:47]}  Kh8 {[%clk 0:00:27]} 23. a5 {[%clk 0:01:47]}  Qb7 {[%clk 0:00:22]} 24. Qc6 {[%clk 0:01:46]}  Qxc6 {[%clk 0:00:20]} 25. bxc6 {[%clk 0:01:46]}  Rc8 {[%clk 0:00:20]} 26. Rc1 {[%clk 0:01:45]}  Kg8 {[%clk 0:00:19]} 27. b4 {[%clk 0:01:45]}  a6 {[%clk 0:00:18]} 28. Rc4 {[%clk 0:01:38]}  Rf7 {[%clk 0:00:18]} 29. Re1 {[%clk 0:01:38]}  Rfc7 {[%clk 0:00:17]} 30. Rec1 {[%clk 0:01:39]}  Kf7 {[%clk 0:00:17]} 31. Kf2 {[%clk 0:01:39]}  Ke6 {[%clk 0:00:17]} 32. f4 {[%clk 0:01:28]}  Kd5 {[%clk 0:00:15]} 33. fxe5 {[%clk 0:01:26]}  Bxe5 {[%clk 0:00:15]} 34. Rc5+ {[%clk 0:01:26]}  Ke6 {[%clk 0:00:12]} 35. Re1 {[%clk 0:01:14]}  Rf7+ {[%clk 0:00:09]} 36. Kg1 {[%clk 0:01:14]}  Rf5 {[%clk 0:00:08]} 37. g4 {[%clk 0:01:14]} 1-0


[Site "https://www.chess.com"]

[Event "Titled Tuesday Blitz June 6 Early 2023"]
[White "Torres Dominguez, David"]
[Black "Arat, Ufuk Sezen"]
[WhiteFideId "2220857"]
[BlackFideId "6309089"]
[WhiteElo "1999"]
[BlackElo "2289"]
[Result "0-1"]
[Round "1"]
[TimeControl "180+2"]
[Date "2023.06.06"]
[WhiteClock "0:01:55"]
[BlackClock "0:02:10"]
[Board "203"]

1. e4 {[%clk 0:03:00]}  c5 {[%clk 0:02:56]} 2. Nc3 {[%clk 0:02:59]}  e6 {[%clk 0:02:56]} 3. f4 {[%clk 0:02:59]}  d5 {[%clk 0:02:56]} 4. Nf3 {[%clk 0:02:59]}  Nc6 {[%clk 0:02:53]} 5. Bb5 {[%clk 0:02:59]}  d4 {[%clk 0:02:53]} 6. Bxc6+ {[%clk 0:02:58]}  bxc6 {[%clk 0:02:53]} 7. Ne2 {[%clk 0:02:57]}  d3 {[%clk 0:02:51]} 8. cxd3 {[%clk 0:02:55]}  Qxd3 {[%clk 0:02:51]} 9. Nc3 {[%clk 0:02:55]}  Bd6 {[%clk 0:02:43]} 10. Qe2 {[%clk 0:02:47]}  Ba6 {[%clk 0:02:41]} 11. e5 {[%clk 0:02:45]}  Be7 {[%clk 0:02:39]} 12. Kf2 {[%clk 0:02:30]}  Nh6 {[%clk 0:02:31]} 13. Re1 {[%clk 0:02:22]}  Rd8 {[%clk 0:02:25]} 14. h3 {[%clk 0:02:17]}  Nf5 {[%clk 0:02:18]} 15. g4 {[%clk 0:02:04]}  Nd4 {[%clk 0:02:14]} 16. Qxd3 {[%clk 0:02:05]}  Bxd3 {[%clk 0:02:13]} 17. Nxd4 {[%clk 0:02:00]}  Bh4+ {[%clk 0:02:11]} 18. Ke3 {[%clk 0:01:58]}  cxd4+ {[%clk 0:02:10]} 19. Kxd3 {[%clk 0:01:56]}  dxc3+ {[%clk 0:02:10]} 20. Kxc3 {[%clk 0:01:55]}  Bxe1 {[%clk 0:02:10]} 0-1


[Site "https://www.chess.com"]

[Event "Titled Tuesday Blitz June 6 Early 2023"]
[White "Ronka, Erik"]
[Black "Joubert, Dantelle"]
[WhiteFideId "505080"]
[BlackFideId "14310813"]
[WhiteElo "2264"]
[BlackElo "1507"]
[Result "1-0"]
[Round "1"]
[TimeControl "180+2"]
[Date "2023.06.06"]
[WhiteClock "0:00:48"]
[BlackClock "0:00:02"]
[Board "204"]

1. e4 {[%clk 0:02:51]}  c5 {[%clk 0:02:59]} 2. Nf3 {[%clk 0:02:46]}  d6 {[%clk 0:02:59]} 3. Bb5+ {[%clk 0:02:31]}  Bd7 {[%clk 0:02:57]} 4. Bxd7+ {[%clk 0:02:31]}  Nxd7 {[%clk 0:02:56]} 5. O-O {[%clk 0:02:29]}  Ngf6 {[%clk 0:02:56]} 6. Qe2 {[%clk 0:02:30]}  g6 {[%clk 0:02:54]} 7. c3 {[%clk 0:02:29]}  Bg7 {[%clk 0:02:54]} 8. d4 {[%clk 0:02:28]}  cxd4 {[%clk 0:02:52]} 9. cxd4 {[%clk 0:02:28]}  O-O {[%clk 0:02:50]} 10. Nc3 {[%clk 0:02:27]}  e6 {[%clk 0:02:45]} 11. Bg5 {[%clk 0:02:26]}  Qa5 {[%clk 0:02:42]} 12. a3 {[%clk 0:02:22]}  a6 {[%clk 0:02:34]} 13. b4 {[%clk 0:02:21]}  Qc7 {[%clk 0:02:31]} 14. Rac1 {[%clk 0:02:20]}  Qb6 {[%clk 0:02:24]} 15. e5 {[%clk 0:01:38]}  dxe5 {[%clk 0:02:06]} 16. dxe5 {[%clk 0:01:39]}  Ng4 {[%clk 0:01:26]} 17. Bf4 {[%clk 0:01:26]}  Rad8 {[%clk 0:01:05]} 18. h3 {[%clk 0:01:25]}  Nh6 {[%clk 0:01:04]} 19. Bg5 {[%clk 0:01:23]}  Rc8 {[%clk 0:01:02]} 20. Ne4 {[%clk 0:01:22]}  Nf5 {[%clk 0:00:51]} 21. Rcd1 {[%clk 0:01:17]}  Nxe5 {[%clk 0:00:50]} 22. Nxe5 {[%clk 0:01:12]}  Bxe5 {[%clk 0:00:47]} 23. Nf6+ {[%clk 0:01:12]}  Bxf6 {[%clk 0:00:46]} 24. Bxf6 {[%clk 0:01:13]}  Rfe8 {[%clk 0:00:45]} 25. g4 {[%clk 0:01:13]}  Ne7 {[%clk 0:00:39]} 26. Qd2 {[%clk 0:01:11]}  Nd5 {[%clk 0:00:37]} 27. Ba1 {[%clk 0:01:10]}  Qc7 {[%clk 0:00:26]} 28. Qh6 {[%clk 0:01:09]}  f6 {[%clk 0:00:13]} 29. Rfe1 {[%clk 0:01:06]}  Qf4 {[%clk 0:00:12]} 30. Qxf4 {[%clk 0:01:03]}  Nxf4 {[%clk 0:00:12]} 31. Bxf6 {[%clk 0:01:04]}  Nxh3+ {[%clk 0:00:10]} 32. Kg2 {[%clk 0:00:59]}  Nf4+ {[%clk 0:00:10]} 33. Kg3 {[%clk 0:00:59]}  Kf7 {[%clk 0:00:09]} 34. Be5 {[%clk 0:00:55]}  Nd5 {[%clk 0:00:08]} 35. Rh1 {[%clk 0:00:55]}  Nf6 {[%clk 0:00:02]} 36. f3 {[%clk 0:00:48]} 1-0


[Site "https://www.chess.com"]

[Event "Titled Tuesday Blitz June 6 Early 2023"]
[White "Camacho Collados, Jose"]
[Black "White, John S."]
[WhiteFideId "2265427"]
[BlackFideId "2502348"]
[WhiteElo "2212"]
[BlackElo "1984"]
[Result "1-0"]
[Round "1"]
[TimeControl "180+2"]
[Date "2023.06.06"]
[WhiteClock "0:01:15"]
[BlackClock "0:00:20"]
[Board "206"]

1. e4 {[%clk 0:02:58]}  e6 {[%clk 0:03:00]} 2. d4 {[%clk 0:02:58]}  d5 {[%clk 0:03:01]} 3. exd5 {[%clk 0:02:56]}  exd5 {[%clk 0:03:01]} 4. Nf3 {[%clk 0:02:56]}  Nf6 {[%clk 0:03:01]} 5. Bd3 {[%clk 0:02:56]}  Be6 {[%clk 0:02:58]} 6. O-O {[%clk 0:02:55]}  Bd6 {[%clk 0:02:57]} 7. Ng5 {[%clk 0:02:54]}  O-O {[%clk 0:02:55]} 8. Nxe6 {[%clk 0:02:52]}  fxe6 {[%clk 0:02:55]} 9. Bg5 {[%clk 0:02:43]}  Qd7 {[%clk 0:02:49]} 10. Nd2 {[%clk 0:02:39]}  c5 {[%clk 0:02:47]} 11. c3 {[%clk 0:02:36]}  Nc6 {[%clk 0:02:46]} 12. Nf3 {[%clk 0:02:35]}  cxd4 {[%clk 0:02:43]} 13. cxd4 {[%clk 0:02:35]}  Rac8 {[%clk 0:02:37]} 14. Re1 {[%clk 0:02:35]}  Na5 {[%clk 0:02:29]} 15. b3 {[%clk 0:02:33]}  Rc3 {[%clk 0:02:20]} 16. Qd2 {[%clk 0:02:26]}  Rfc8 {[%clk 0:02:13]} 17. h3 {[%clk 0:02:18]}  Bb4 {[%clk 0:02:05]} 18. Ne5 {[%clk 0:02:13]}  Qe8 {[%clk 0:01:57]} 19. Bxf6 {[%clk 0:02:08]}  gxf6 {[%clk 0:01:56]} 20. Qh6 {[%clk 0:02:09]}  R8c7 {[%clk 0:01:35]} 21. Qxf6 {[%clk 0:01:59]}  Rg7 {[%clk 0:01:29]} 22. a3 {[%clk 0:01:49]}  Nxb3 {[%clk 0:01:25]} 23. axb4 {[%clk 0:01:47]}  Nxa1 {[%clk 0:01:23]} 24. Rxa1 {[%clk 0:01:45]}  a6 {[%clk 0:01:14]} 25. Re1 {[%clk 0:01:42]}  Rb3 {[%clk 0:01:05]} 26. Re3 {[%clk 0:01:34]}  Rxb4 {[%clk 0:01:00]} 27. Ng4 {[%clk 0:01:33]}  Kh8 {[%clk 0:00:48]} 28. Rxe6 {[%clk 0:01:31]}  Qg8 {[%clk 0:00:42]} 29. Qe5 {[%clk 0:01:25]}  Ra4 {[%clk 0:00:25]} 30. Re8 {[%clk 0:01:22]}  Ra1+ {[%clk 0:00:22]} 31. Kh2 {[%clk 0:01:22]}  Qxe8 {[%clk 0:00:20]} 32. Qxe8+ {[%clk 0:01:21]}  Rg8 {[%clk 0:00:21]} 33. Qe5+ {[%clk 0:01:19]}  Rg7 {[%clk 0:00:20]} 34. Nh6 {[%clk 0:01:15]} 1-0


[Site "https://www.chess.com"]

[Event "Titled Tuesday Blitz June 6 Early 2023"]
[White "Porat, Tori"]
[Black "Pinheiro, Iung Alicio de O."]
[WhiteFideId "30982626"]
[BlackFideId "2104350"]
[WhiteElo "1752"]
[BlackElo "2283"]
[Result "0-1"]
[Round "1"]
[TimeControl "180+2"]
[Date "2023.06.06"]
[WhiteClock "0:00:01"]
[BlackClock "0:00:19"]
[Board "207"]

1. d4 {[%clk 0:02:58]}  Nf6 {[%clk 0:02:56]} 2. c4 {[%clk 0:02:58]}  e6 {[%clk 0:02:55]} 3. Nf3 {[%clk 0:02:57]}  Bb4+ {[%clk 0:02:51]} 4. Nc3 {[%clk 0:02:56]}  b6 {[%clk 0:02:37]} 5. g3 {[%clk 0:02:54]}  Bb7 {[%clk 0:02:37]} 6. Bg2 {[%clk 0:02:54]}  Ne4 {[%clk 0:02:22]} 7. Qc2 {[%clk 0:02:34]}  f5 {[%clk 0:01:34]} 8. O-O {[%clk 0:02:27]}  Bxc3 {[%clk 0:01:29]} 9. bxc3 {[%clk 0:02:27]}  Nc6 {[%clk 0:01:21]} 10. d5 {[%clk 0:02:22]}  Na5 {[%clk 0:01:17]} 11. dxe6 {[%clk 0:02:04]}  dxe6 {[%clk 0:01:16]} 12. Rd1 {[%clk 0:01:55]}  Qf6 {[%clk 0:01:11]} 13. Qa4+ {[%clk 0:01:52]}  Bc6 {[%clk 0:01:09]} 14. Qb4 {[%clk 0:01:47]}  Qxc3 {[%clk 0:01:04]} 15. Bd2 {[%clk 0:01:39]}  Qxb4 {[%clk 0:00:54]} 16. Bxb4 {[%clk 0:01:38]}  Nxc4 {[%clk 0:00:53]} 17. Nd4 {[%clk 0:01:25]}  Bd5 {[%clk 0:00:53]} 18. Nb5 {[%clk 0:01:12]}  c5 {[%clk 0:00:46]} 19. Be1 {[%clk 0:00:50]}  Kf7 {[%clk 0:00:43]} 20. f3 {[%clk 0:00:44]}  Nf6 {[%clk 0:00:43]} 21. Bc3 {[%clk 0:00:42]}  Rhd8 {[%clk 0:00:41]} 22. Kf2 {[%clk 0:00:34]}  Bc6 {[%clk 0:00:34]} 23. Nc7 {[%clk 0:00:27]}  Rac8 {[%clk 0:00:34]} 24. Rxd8 {[%clk 0:00:19]}  Rxd8 {[%clk 0:00:34]} 25. f4 {[%clk 0:00:16]}  Bxg2 {[%clk 0:00:32]} 26. Kxg2 {[%clk 0:00:17]}  Ne4 {[%clk 0:00:31]} 27. Rc1 {[%clk 0:00:14]}  Ne3+ {[%clk 0:00:28]} 28. Kf3 {[%clk 0:00:14]}  Nd5 {[%clk 0:00:29]} 29. Nxd5 {[%clk 0:00:12]}  Rxd5 {[%clk 0:00:30]} 30. e3 {[%clk 0:00:11]}  Rd3 {[%clk 0:00:29]} 31. Be5 {[%clk 0:00:11]}  g5 {[%clk 0:00:27]} 32. Bb8 {[%clk 0:00:09]}  Ra3 {[%clk 0:00:26]} 33. Rc2 {[%clk 0:00:08]}  g4+ {[%clk 0:00:24]} 34. Kg2 {[%clk 0:00:08]}  b5 {[%clk 0:00:23]} 35. Rb2 {[%clk 0:00:07]}  b4 {[%clk 0:00:23]} 36. Bc7 {[%clk 0:00:06]}  a5 {[%clk 0:00:23]} 37. Bb6 {[%clk 0:00:06]}  a4 {[%clk 0:00:22]} 38. Rc2 {[%clk 0:00:06]}  b3 {[%clk 0:00:21]} 39. axb3 {[%clk 0:00:06]}  axb3 {[%clk 0:00:22]} 40. Rc1 {[%clk 0:00:04]}  b2 {[%clk 0:00:19]} 41. Rb1 {[%clk 0:00:04]}  Rb3 {[%clk 0:00:19]} 42. Ba5 {[%clk 0:00:03]}  c4 {[%clk 0:00:19]} 43. Be1 {[%clk 0:00:02]}  c3 {[%clk 0:00:19]} 44. Kg1 {[%clk 0:00:02]}  c2 {[%clk 0:00:19]} 45. Rxb2 {[%clk 0:00:02]}  Rxb2 {[%clk 0:00:19]} 46. Kf1 {[%clk 0:00:01]}  c1=Q {[%clk 0:00:19]} 0-1


[Site "https://www.chess.com"]

[Event "Titled Tuesday Blitz June 6 Early 2023"]
[White "Trifan, Andrei Ioan"]
[Black "Sanchez, Robert"]
[WhiteFideId "12967068"]
[BlackFideId "2034360"]
[WhiteElo "2208"]
[BlackElo "1795"]
[Result "1-0"]
[Round "1"]
[TimeControl "180+2"]
[Date "2023.06.06"]
[WhiteClock "0:00:58"]
[BlackClock "0:00:41"]
[Board "210"]

1. e4 {[%clk 0:02:58]}  e6 {[%clk 0:03:00]} 2. d4 {[%clk 0:02:55]}  d5 {[%clk 0:03:00]} 3. Nc3 {[%clk 0:02:54]}  Nf6 {[%clk 0:03:00]} 4. e5 {[%clk 0:02:54]}  Ne4 {[%clk 0:03:00]} 5. Nce2 {[%clk 0:02:42]}  f6 {[%clk 0:02:59]} 6. h4 {[%clk 0:02:35]}  Nxf2 {[%clk 0:02:32]} 7. Kxf2 {[%clk 0:02:34]}  c5 {[%clk 0:02:32]} 8. Nf3 {[%clk 0:02:28]}  Nc6 {[%clk 0:02:33]} 9. exf6 {[%clk 0:02:19]}  Qxf6 {[%clk 0:02:32]} 10. c3 {[%clk 0:02:19]}  h6 {[%clk 0:02:31]} 11. Bf4 {[%clk 0:02:09]}  Be7 {[%clk 0:02:30]} 12. Be5 {[%clk 0:02:01]}  Nxe5 {[%clk 0:02:30]} 13. dxe5 {[%clk 0:02:02]}  Qf7 {[%clk 0:02:29]} 14. Qc2 {[%clk 0:01:54]}  O-O {[%clk 0:02:28]} 15. Ng3 {[%clk 0:01:51]}  Bd7 {[%clk 0:02:23]} 16. Bd3 {[%clk 0:01:44]}  Bc6 {[%clk 0:02:09]} 17. h5 {[%clk 0:01:40]}  c4 {[%clk 0:01:50]} 18. Bg6 {[%clk 0:01:25]}  Qf4 {[%clk 0:01:50]} 19. Ne2 {[%clk 0:01:14]}  Bc5+ {[%clk 0:01:45]} 20. Ke1 {[%clk 0:01:07]}  Qe3 {[%clk 0:01:40]} 21. Rf1 {[%clk 0:01:04]}  d4 {[%clk 0:01:03]} 22. Qd2 {[%clk 0:01:03]}  Rxf3 {[%clk 0:00:46]} 23. gxf3 {[%clk 0:00:59]}  Qg5 {[%clk 0:00:41]} 24. Qxg5 {[%clk 0:00:58]} 1-0


[Site "https://www.chess.com"]

[Event "Titled Tuesday Blitz June 6 Early 2023"]
[White "Nihal Sarin"]
[Black "Aldokhin, Ivan"]
[WhiteFideId "25092340"]
[BlackFideId "24115720"]
[WhiteElo "2689"]
[BlackElo "2322"]
[Result "1-0"]
[Round "2"]
[TimeControl "180+2"]
[Date "2023.06.06"]
[WhiteClock "0:00:05"]
[BlackClock "0:00:02"]
[Board "1"]

1. Nf3 {[%clk 0:03:00]}  Nf6 {[%clk 0:02:59]} 2. c4 {[%clk 0:02:58]}  g6 {[%clk 0:02:59]} 3. b3 {[%clk 0:02:54]}  Bg7 {[%clk 0:03:00]} 4. Bb2 {[%clk 0:02:55]}  O-O {[%clk 0:03:00]} 5. g3 {[%clk 0:02:55]}  d6 {[%clk 0:03:00]} 6. Bg2 {[%clk 0:02:55]}  e5 {[%clk 0:03:00]} 7. d3 {[%clk 0:02:56]}  Nc6 {[%clk 0:02:56]} 8. O-O {[%clk 0:02:56]}  Bg4 {[%clk 0:02:52]} 9. Nc3 {[%clk 0:02:54]}  Qd7 {[%clk 0:02:52]} 10. Re1 {[%clk 0:02:54]}  Rae8 {[%clk 0:02:37]} 11. Nd2 {[%clk 0:02:51]}  Bh3 {[%clk 0:02:28]} 12. Bh1 {[%clk 0:02:51]}  Ng4 {[%clk 0:02:21]} 13. Nd5 {[%clk 0:02:43]}  f5 {[%clk 0:02:11]} 14. e3 {[%clk 0:02:43]}  g5 {[%clk 0:01:49]} 15. b4 {[%clk 0:02:29]}  Nd8 {[%clk 0:01:13]} 16. b5 {[%clk 0:02:29]}  Qf7 {[%clk 0:01:06]} 17. f3 {[%clk 0:01:35]}  Nf6 {[%clk 0:00:59]} 18. Nxf6+ {[%clk 0:01:35]}  Bxf6 {[%clk 0:00:55]} 19. Bg2 {[%clk 0:01:27]}  Bxg2 {[%clk 0:00:47]} 20. Kxg2 {[%clk 0:01:28]}  Ne6 {[%clk 0:00:46]} 21. a4 {[%clk 0:01:28]}  Nc5 {[%clk 0:00:44]} 22. Ra3 {[%clk 0:01:00]}  e4 {[%clk 0:00:43]} 23. Bxf6 {[%clk 0:01:00]}  Qxf6 {[%clk 0:00:41]} 24. d4 {[%clk 0:00:52]}  exf3+ {[%clk 0:00:33]} 25. Qxf3 {[%clk 0:00:53]}  Ne4 {[%clk 0:00:33]} 26. Ra2 {[%clk 0:00:49]}  g4 {[%clk 0:00:20]} 27. Qf1 {[%clk 0:00:33]}  Ng5 {[%clk 0:00:14]} 28. a5 {[%clk 0:00:23]}  Re6 {[%clk 0:00:14]} 29. Qf4 {[%clk 0:00:15]}  Nh3 {[%clk 0:00:11]} 30. Qf1 {[%clk 0:00:15]}  Rfe8 {[%clk 0:00:10]} 31. e4 {[%clk 0:00:10]}  f4 {[%clk 0:00:07]} 32. gxf4 {[%clk 0:00:09]}  Nxf4+ {[%clk 0:00:06]} 33. Kh1 {[%clk 0:00:09]}  Qg5 {[%clk 0:00:03]} 34. Ra3 {[%clk 0:00:08]}  Ng6 {[%clk 0:00:03]} 35. Qg2 {[%clk 0:00:07]}  h5 {[%clk 0:00:03]} 36. Nf3 {[%clk 0:00:05]}  Qf4 {[%clk 0:00:02]} 37. Nd2 {[%clk 0:00:06]}  Rf6 {[%clk 0:00:02]} 38. Rf1 {[%clk 0:00:06]}  Qg5 {[%clk 0:00:03]} 39. Rxf6 {[%clk 0:00:06]}  Qxf6 {[%clk 0:00:03]} 40. e5 {[%clk 0:00:07]}  dxe5 {[%clk 0:00:03]} 41. Ne4 {[%clk 0:00:07]}  Qf4 {[%clk 0:00:03]} 42. d5 {[%clk 0:00:07]}  Qc1+ {[%clk 0:00:03]} 43. Qg1 {[%clk 0:00:07]}  Qxa3 {[%clk 0:00:04]} 44. Nf6+ {[%clk 0:00:08]}  Kf7 {[%clk 0:00:03]} 45. Nxe8 {[%clk 0:00:06]}  Qf3+ {[%clk 0:00:04]} 46. Qg2 {[%clk 0:00:07]}  Kxe8 {[%clk 0:00:03]} 47. c5 {[%clk 0:00:08]}  Nf4 {[%clk 0:00:03]} 48. Qxf3 {[%clk 0:00:08]}  gxf3 {[%clk 0:00:03]} 49. Kg1 {[%clk 0:00:09]}  e4 {[%clk 0:00:03]} 50. b6 {[%clk 0:00:09]}  axb6 {[%clk 0:00:02]} 51. c6 {[%clk 0:00:10]}  bxa5 {[%clk 0:00:01]} 52. cxb7 {[%clk 0:00:10]}  e3 {[%clk 0:00:02]} 53. b8=Q+ {[%clk 0:00:11]}  Kd7 {[%clk 0:00:02]} 54. Qb5+ {[%clk 0:00:08]}  Kd6 {[%clk 0:00:02]} 55. Qc6+ {[%clk 0:00:08]}  Ke5 {[%clk 0:00:02]} 56. Qxc7+ {[%clk 0:00:09]}  Ke4 {[%clk 0:00:03]} 57. Qc4+ {[%clk 0:00:09]}  Ke5 {[%clk 0:00:03]} 58. d6 {[%clk 0:00:04]}  f2+ {[%clk 0:00:03]} 59. Kf1 {[%clk 0:00:04]}  e2+ {[%clk 0:00:03]} 60. Kxf2 {[%clk 0:00:04]}  Kxd6 {[%clk 0:00:02]} 61. Qxf4+ {[%clk 0:00:04]}  Kd5 {[%clk 0:00:02]} 62. Kxe2 {[%clk 0:00:05]} 1-0


[Site "https://www.chess.com"]

[Event "Titled Tuesday Blitz June 6 Early 2023"]
[White "Paravyan, David"]
[Black "Dixit, Nikhil"]
[WhiteFideId "4194985"]
[BlackFideId "5059534"]
[WhiteElo "2563"]
[BlackElo "2207"]
[Result "1-0"]
[Round "2"]
[TimeControl "180+2"]
[Date "2023.06.06"]
[WhiteClock "0:00:23"]
[BlackClock "0:01:10"]
[Board "7"]

1. d4 {[%clk 0:03:00]}  Nf6 {[%clk 0:02:57]} 2. c4 {[%clk 0:03:00]}  g6 {[%clk 0:02:57]} 3. f3 {[%clk 0:02:58]}  Bg7 {[%clk 0:02:56]} 4. e4 {[%clk 0:02:58]}  d6 {[%clk 0:02:57]} 5. Nc3 {[%clk 0:02:57]}  O-O {[%clk 0:02:57]} 6. Be3 {[%clk 0:02:58]}  c6 {[%clk 0:02:57]} 7. Qd2 {[%clk 0:02:57]}  a6 {[%clk 0:02:58]} 8. Rc1 {[%clk 0:02:47]}  b5 {[%clk 0:02:57]} 9. a3 {[%clk 0:02:46]}  Nbd7 {[%clk 0:02:51]} 10. Bd3 {[%clk 0:02:24]}  Nb6 {[%clk 0:02:41]} 11. cxb5 {[%clk 0:02:23]}  cxb5 {[%clk 0:02:36]} 12. Nge2 {[%clk 0:02:20]}  d5 {[%clk 0:02:29]} 13. e5 {[%clk 0:02:20]}  Ne8 {[%clk 0:02:24]} 14. h4 {[%clk 0:02:17]}  f6 {[%clk 0:02:21]} 15. h5 {[%clk 0:02:14]}  Nc4 {[%clk 0:02:15]} 16. Bxc4 {[%clk 0:02:14]}  dxc4 {[%clk 0:02:13]} 17. hxg6 {[%clk 0:02:02]}  hxg6 {[%clk 0:02:14]} 18. Bh6 {[%clk 0:02:01]}  g5 {[%clk 0:02:06]} 19. Ng3 {[%clk 0:01:21]}  Bxh6 {[%clk 0:01:57]} 20. Rxh6 {[%clk 0:01:20]}  Kg7 {[%clk 0:01:58]} 21. Rh2 {[%clk 0:01:14]}  Nc7 {[%clk 0:01:54]} 22. d5 {[%clk 0:01:08]}  Rh8 {[%clk 0:01:48]} 23. Nh5+ {[%clk 0:01:06]}  Kg6 {[%clk 0:01:43]} 24. g4 {[%clk 0:01:05]}  f5 {[%clk 0:01:39]} 25. e6 {[%clk 0:00:59]}  Bxe6 {[%clk 0:01:25]} 26. dxe6 {[%clk 0:00:59]}  Qxd2+ {[%clk 0:01:26]} 27. Kxd2 {[%clk 0:00:59]}  Nxe6 {[%clk 0:01:26]} 28. gxf5+ {[%clk 0:00:55]}  Kxf5 {[%clk 0:01:25]} 29. Rch1 {[%clk 0:00:50]}  Rhd8+ {[%clk 0:01:22]} 30. Kc1 {[%clk 0:00:51]}  Nc5 {[%clk 0:01:21]} 31. Ng3+ {[%clk 0:00:48]}  Kf4 {[%clk 0:01:21]} 32. Nge2+ {[%clk 0:00:40]}  Ke3 {[%clk 0:01:19]} 33. Kb1 {[%clk 0:00:38]}  Rd2 {[%clk 0:01:14]} 34. Nd1+ {[%clk 0:00:20]}  Kxf3 {[%clk 0:01:14]} 35. Rf2+ {[%clk 0:00:16]}  Ke4 {[%clk 0:01:09]} 36. Nec3+ {[%clk 0:00:16]}  Kd3 {[%clk 0:01:04]} 37. Rh3+ {[%clk 0:00:17]}  Kd4 {[%clk 0:01:05]} 38. Rxd2+ {[%clk 0:00:17]}  Ke5 {[%clk 0:01:06]} 39. Rd5+ {[%clk 0:00:18]}  Ke6 {[%clk 0:01:05]} 40. Rxc5 {[%clk 0:00:18]}  Rd8 {[%clk 0:01:06]} 41. Re3+ {[%clk 0:00:19]}  Kf6 {[%clk 0:01:06]} 42. Rce5 {[%clk 0:00:20]}  Kg6 {[%clk 0:01:07]} 43. Re6+ {[%clk 0:00:20]}  Kh5 {[%clk 0:01:07]} 44. Nf2 {[%clk 0:00:21]}  Kh4 {[%clk 0:01:08]} 45. Nfe4 {[%clk 0:00:21]}  Kg4 {[%clk 0:01:08]} 46. Rxe7 {[%clk 0:00:22]}  Kf4 {[%clk 0:01:08]} 47. Re2 {[%clk 0:00:23]}  g4 {[%clk 0:01:09]} 48. Nf6 {[%clk 0:00:22]}  g3 {[%clk 0:01:10]} 49. Nh5+ {[%clk 0:00:23]}  Kf3 {[%clk 0:01:10]} 50. Nxg3 {[%clk 0:00:23]} 1-0


[Site "https://www.chess.com"]